bitfinex-derivatives/quotes_BTCF0:USTF0_20240903
["timestamp","ask_amount","ask_price","bid_price","bid_amount"]
[1725377285000,0.0004,57820.0,57819.0,0.76309943]
[1725377285196,0.05157486,57827.0,57825.0,0.086488]
[1725377285397,0.6024,57835.0,57826.0,0.66980703]
[1725377285398,0.05157486,57833.0,57826.0,0.66980703]
[1725377285700,0.37805086,57834.0,57827.0,0.06900703]
[1725377285901,0.086486,57827.0,57826.0,0.3608]
[1725377286295,0.086486,57827.0,57826.0,0.41256505]
[1725377286696,0.090486,57827.0,57826.0,0.41256505]
[1725377286895,0.090486,57827.0,57826.0,0.6008]
[1725377287095,0.004,57827.0,57826.0,0.6008]
[1725377287305,0.004,57827.0,57826.0,0.687287]
[1725377287501,0.05183429,57830.0,57827.0,0.086486]
[1725377287699,0.05183429,57830.0,57828.0,0.086484]
[1725377287700,0.00025943,57830.0,57828.0,0.086484]
[1725377289317,0.00425943,57830.0,57828.0,0.087484]
[1725377289622,0.00825943,57830.0,57828.0,0.088484]
[1725377290125,0.00825943,57830.0,57829.0,0.086483]
[1725377290318,0.00825943,57830.0,57829.0,0.326483]
[1725377290526,0.00825943,57830.0,57828.0,0.002]
[1725377290724,0.0004,57829.0,57828.0,0.002]
[1725377291316,0.00825943,57830.0,57829.0,0.0006]
[1725377291917,0.09474043,57830.0,57829.0,0.0006]
[1725377292222,0.00825943,57830.0,57829.0,0.2406]
[1725377292420,0.00025943,57830.0,57829.0,0.29275176]
[1725377292738,0.00425943,57830.0,57829.0,1.446243]
[1725377292921,0.004,57830.0,57829.0,1.686543]
[1725377293525,0.004,57830.0,57829.0,1.086543]
[1725377294715,0.00025943,57835.0,57829.0,1.00006]
[1725377294919,0.00025943,57835.0,57834.0,0.326475]
[1725377295214,0.00025943,57835.0,57834.0,0.38684339]
[1725377295615,0.00025943,57835.0,57834.0,0.33513482]
[1725377295817,0.00425943,57835.0,57834.0,0.33513482]
[1725377296216,0.00925943,57835.0,57834.0,0.33613482]
[1725377296616,0.00925943,57835.0,57834.0,0.33713482]
[1725377297223,0.3608,57837.0,57836.0,0.086472]
[1725377297423,0.3608,57837.0,57836.0,0.605192]
[1725377298423,0.3658,57837.0,57836.0,0.087472]
[1725377299016,0.3658,57837.0,57836.0,0.1187758]
[1725377299826,0.3658,57837.0,57836.0,0.1197758]
[1725377301430,0.04857486,57844.0,57837.0,0.086471]
[1725377301729,0.591,57851.0,57846.0,0.086456]
[1725377301730,0.3608,57851.0,57846.0,0.086456]
[1725377301931,0.3608,57851.0,57842.0,0.3608]
[1725377301932,0.558849,57852.0,57848.0,0.24]
[1725377302128,0.4724,57852.0,57848.0,0.24]
[1725377302524,0.4724,57852.0,57849.0,0.086452]
[1725377303430,0.2315,57852.0,57849.0,0.086452]
[1725377303933,0.2315,57852.0,57851.0,0.08645]
[1725377304231,0.4456,57857.0,57853.0,0.086447]
[1725377304438,0.2243,57856.0,57853.0,0.086447]
[1725377304737,0.24,57854.0,57850.0,0.086451]
[1725377304934,0.0004,57851.0,57849.0,0.002]
[1725377305328,0.0004,57850.0,57849.0,0.001]
[1725377305637,0.0004,57850.0,57843.0,0.32672143]
[1725377305638,0.086455,57848.0,57843.0,0.00025943]
[1725377305838,0.326855,57848.0,57843.0,0.00025943]
[1725377306531,0.0004,57848.0,57845.0,0.326459]
[1725377306729,0.0004,57848.0,57847.0,0.39167065]
[1725377307533,0.0004,57848.0,57847.0,0.71812665]
[1725377308941,0.0004,57848.0,57847.0,0.71912665]
[1725377309433,0.0004,57851.0,57850.0,0.086452]
[1725377309637,0.0004,57851.0,57850.0,0.326452]
[1725377310425,0.2243,57856.0,57853.0,0.086447]
[1725377310631,0.2243,57856.0,57855.0,0.24]
[1725377311938,0.2243,57856.0,57855.0,0.326444]
[1725377312338,0.2243,57856.0,57855.0,0.35700019]
[1725377313642,0.2231,57857.0,57855.0,0.35700019]
[1725377314038,0.2231,57857.0,57855.0,0.36000019]
[1725377314234,0.2231,57857.0,57856.0,3.77]
[1725377314425,0.086443,57856.0,57855.0,0.03155619]
[1725377314625,0.326843,57856.0,57855.0,0.03355619]
[1725377315229,0.326843,57856.0,57855.0,0.03155619]
[1725377315431,0.086843,57856.0,57855.0,0.03155619]
[1725377315633,0.0004,57856.0,57855.0,0.27155619]
[1725377315827,0.0004,57856.0,57855.0,0.03155619]
[1725377316242,0.0004,57856.0,57855.0,0.03055619]
[1725377316444,0.0004,57856.0,57854.0,0.13813187]
[1725377316639,0.0004,57855.0,57854.0,0.13813187]
[1725377316845,0.0004,57855.0,57854.0,0.37813187]
[1725377317143,0.0004,57855.0,57854.0,0.40973508]
[1725377317541,0.0004,57855.0,57854.0,0.08329108]
[1725377317935,0.326844,57855.0,57854.0,0.08329108]
[1725377318242,0.413288,57855.0,57854.0,0.08329108]
[1725377319442,0.413288,57855.0,57854.0,0.03160321]
[1725377319638,0.413288,57855.0,57847.0,0.3608]
[1725377319639,0.086455,57848.0,57847.0,0.3608]
[1725377319847,0.0004,57848.0,57847.0,0.47853236]
[1725377320943,0.0004,57848.0,57847.0,0.39207636]
[1725377325145,0.0004,57848.0,57847.0,0.46104589]
[1725377325443,0.086855,57848.0,57847.0,0.44375624]
[1725377325644,0.0004,57848.0,57847.0,0.44375711]
[1725377325950,0.086855,57848.0,57847.0,0.39207636]
[1725377326448,0.086458,57846.0,57845.0,0.05168535]
[1725377326645,0.326459,57845.0,57843.0,0.00025943]
[1725377326839,0.08646,57844.0,57843.0,0.00025943]
[1725377327443,0.17292,57844.0,57843.0,0.00025943]
[1725377327945,0.17192,57844.0,57843.0,0.00025943]
[1725377328334,0.17192,57844.0,57843.0,0.0307224]
[1725377328534,0.17192,57844.0,57843.0,0.0337224]
[1725377329448,0.17192,57844.0,57843.0,0.0367224]
[1725377332047,0.25838,57844.0,57843.0,0.0367224]
[1725377334361,0.17192,57844.0,57843.0,0.0367224]
[1725377334656,0.41192,57844.0,57843.0,0.0367224]
[1725377339258,0.32546,57844.0,57843.0,0.0367224]
[1725377339648,0.32546,57844.0,57843.0,0.08840775]
[1725377339950,0.32546,57844.0,57843.0,0.0367224]
[1725377342463,0.41192,57844.0,57843.0,0.0367224]
[1725377343149,0.49838,57844.0,57843.0,0.0367224]
[1725377345964,2.1563383,57844.0,57843.0,0.00625943]
[1725377346155,0.086474,57835.0,57831.0,0.05168535]
[1725377346348,0.086474,57835.0,57828.0,0.004]
[1725377346349,0.08648,57831.0,57830.0,0.086481]
[1725377346553,0.08688,57831.0,57828.0,0.05168535]
[1725377346861,0.24,57829.0,57828.0,0.05168535]
[1725377347249,0.413366,57829.0,57828.0,0.03113995]
[1725377347462,0.326883,57829.0,57823.0,0.05194478]
[1725377347656,0.2404,57824.0,57823.0,0.00025943]
[1725377347852,0.41338,57824.0,57823.0,0.00025943]
[1725377348160,0.41338,57824.0,57823.0,0.03110669]
[1725377348748,0.49987,57824.0,57823.0,0.03110669]
[1725377349056,0.086505,57814.0,57813.0,0.06455712]
[1725377349248,0.086505,57814.0,57804.0,0.53817619]
[1725377349249,0.2404,57814.0,57810.0,0.05174626]
[1725377349451,0.32691,57811.0,57810.0,0.05174626]
[1725377349650,0.32651,57811.0,57810.0,0.05174626]
[1725377349845,0.32651,57811.0,57809.0,0.08248766]
[1725377349846,0.086511,57810.0,57809.0,0.08248766]
[1725377350053,0.326511,57810.0,57809.0,0.08248766]
[1725377350264,0.774222,57810.0,57809.0,0.08244585]
[1725377350457,0.679711,57810.0,57809.0,0.0307414]
[1725377350660,0.086514,57808.0,57807.0,0.05170445]
[1725377350960,0.313914,57808.0,57807.0,0.05170445]
[1725377351255,0.086519,57805.0,57804.0,0.05196388]
[1725377351461,0.326919,57805.0,57804.0,0.03145841]
[1725377351658,0.322919,57805.0,57804.0,0.03145841]
[1725377352251,0.316919,57805.0,57804.0,0.03145841]
[1725377353155,0.313919,57805.0,57804.0,0.03145841]
[1725377353962,0.314919,57805.0,57804.0,0.03745841]
[1725377354164,0.315919,57805.0,57804.0,0.04545841]
[1725377355366,0.676719,57805.0,57804.0,0.04545841]
[1725377356457,0.675719,57805.0,57804.0,0.03745841]
[1725377356654,0.767238,57805.0,57804.0,0.03745841]
[1725377357959,0.762238,57805.0,57804.0,0.03745841]
[1725377358164,0.770238,57805.0,57804.0,0.03845841]
[1725377358357,0.769238,57805.0,57804.0,0.03245841]
[1725377358558,0.775238,57805.0,57804.0,0.03345841]
[1725377358967,0.769238,57805.0,57804.0,0.03245841]
[1725377359169,0.782238,57805.0,57804.0,0.03345841]
[1725377359359,1.987757,57805.0,57804.0,0.03345841]
[1725377359564,1.987757,57805.0,57804.0,0.00225943]
[1725377359769,1.979757,57805.0,57804.0,0.00125943]
[1725377360067,1.990757,57805.0,57804.0,0.00225943]
[1725377361268,2.110757,57805.0,57804.0,0.00225943]
[1725377362168,0.519,57804.0,57791.0,0.004]
[1725377362368,0.326538,57792.0,57791.0,0.03103438]
[1725377362566,0.326538,57792.0,57784.0,0.09527304]
[1725377362567,0.086549,57785.0,57784.0,0.09527304]
[1725377362868,0.086549,57785.0,57784.0,0.086549]
[1725377362869,0.326549,57785.0,57784.0,0.086549]
[1725377363071,0.326549,57785.0,57784.0,3.856549]
[1725377363264,0.326549,57785.0,57784.0,3.77]
[1725377363463,0.324549,57785.0,57781.0,0.2329]
[1725377363765,0.24,57782.0,57781.0,0.26430521]
[1725377364365,0.317553,57782.0,57781.0,0.03140521]
[1725377364568,0.317553,57782.0,57779.0,0.00025943]
[1725377365071,0.086556,57780.0,57779.0,0.00025943]
[1725377366060,0.082556,57780.0,57779.0,0.03113327]
[1725377366266,0.083556,57780.0,57779.0,0.03113327]
[1725377366970,0.084556,57780.0,57779.0,0.03613327]
[1725377367161,0.171112,57780.0,57779.0,0.03613327]
[1725377367861,0.084556,57780.0,57779.0,0.03613327]
[1725377368061,0.324556,57780.0,57779.0,0.03613327]
[1725377368972,0.323556,57780.0,57779.0,0.03613327]
[1725377369567,0.322556,57780.0,57779.0,0.03113327]
[1725377371367,0.24,57780.0,57779.0,0.03113327]
[1725377374376,0.24,57780.0,57779.0,0.11769127]
[1725377374578,0.24,57786.0,57785.0,0.086549]
[1725377374776,0.24,57786.0,57779.0,1.39033327]
[1725377374777,0.3608,57788.0,57786.0,0.086546]
[1725377374982,0.3608,57788.0,57787.0,4.085346]
[1725377375177,0.00025943,57790.0,57789.0,0.086543]
[1725377376376,0.00025943,57790.0,57789.0,0.73904745]
[1725377376676,0.01025943,57790.0,57789.0,0.687343]
[1725377377083,0.01025943,57790.0,57789.0,0.71844614]
[1725377377277,0.01025943,57790.0,57789.0,0.78741567]
[1725377378189,0.00025943,57790.0,57789.0,0.78741567]
[1725377378487,0.00925943,57790.0,57789.0,0.78741567]
[1725377378685,0.00925943,57790.0,57789.0,0.71844614]
[1725377378885,0.00925943,57790.0,57789.0,0.47844614]
[1725377379077,0.00025943,57790.0,57789.0,0.47844614]
[1725377379588,0.00025943,57790.0,57789.0,0.48144614]
[1725377380187,0.00025943,57790.0,57789.0,0.48044614]
[1725377380381,0.00025943,57790.0,57789.0,0.48144614]
[1725377384593,0.00025943,57790.0,57789.0,0.48044614]
[1725377384991,0.00025943,57790.0,57789.0,0.47944614]
[1725377385190,0.00025943,57790.0,57789.0,0.69594584]
[1725377385796,0.00025943,57790.0,57789.0,0.69570533]
[1725377386199,0.24025943,57790.0,57789.0,0.48044614]
[1725377387193,0.24025943,57790.0,57789.0,0.56676617]
[1725377387789,0.24025943,57790.0,57789.0,0.48022317]
[1725377387992,0.24025943,57790.0,57789.0,0.48044614]
[1725377393009,0.00025943,57790.0,57789.0,0.48044614]
[1725377395609,0.00025943,57790.0,57789.0,0.72044614]
[1725377396013,0.00025943,57790.0,57789.0,0.80676617]
[1725377396406,0.00025943,57790.0,57789.0,0.48044614]
[1725377398112,0.00025943,57790.0,57789.0,0.6955677]
[1725377398816,0.00025943,57790.0,57789.0,0.69555477]
[1725377399222,0.00025943,57790.0,57789.0,0.60923474]
[1725377400418,0.00025943,57790.0,57789.0,0.52269174]
[1725377400618,0.24,57792.0,57791.0,0.08654]
[1725377401308,0.24,57799.0,57791.0,0.21519312]
[1725377401509,0.086529,57798.0,57796.0,0.06905465]
[1725377401710,0.086529,57798.0,57797.0,0.06905465]
[1725377402018,0.086529,57798.0,57795.0,0.3608]
[1725377402019,0.086531,57797.0,57795.0,0.3608]
[1725377402619,0.24,57798.0,57795.0,0.447333]
[1725377402925,0.32653,57798.0,57795.0,0.3608]
[1725377403119,0.086531,57797.0,57795.0,0.44709142]
[1725377403320,0.086532,57796.0,57795.0,0.08629142]
[1725377403512,0.086538,57792.0,57791.0,0.00225943]
[1725377403718,0.326538,57792.0,57791.0,0.39442534]
[1725377403916,0.086535,57794.0,57791.0,0.39442534]
[1725377404118,0.24,57795.0,57791.0,0.39442534]
[1725377404119,0.24,57795.0,57793.0,0.08629142]
[1725377404420,0.24,57795.0,57794.0,0.08629142]
[1725377405109,0.24,57795.0,57794.0,0.12928976]
[1725377405614,0.242,57795.0,57794.0,0.12928976]
[1725377405815,0.245,57795.0,57794.0,0.21582476]
[1725377406211,0.245,57795.0,57794.0,0.12928976]
[1725377406824,0.245,57795.0,57794.0,0.12914707]
[1725377407335,0.005,57795.0,57794.0,0.21568207]
[1725377407527,0.06883197,57800.0,57794.0,0.21568207]
[1725377407528,0.00025943,57800.0,57799.0,0.086528]
[1725377407720,0.00025943,57800.0,57799.0,0.3018986]
[1725377407920,0.00025943,57800.0,57799.0,0.21538468]
[1725377408339,0.06857254,57805.0,57799.0,0.12885668]
[1725377408622,0.0004,57814.0,57804.0,0.6008]
[1725377408623,0.6922,57813.0,57804.0,0.6008]
[1725377408825,0.6922,57813.0,57809.0,0.08645509]
[1725377409017,0.6922,57813.0,57811.0,0.44725509]
[1725377409219,0.2349,57814.0,57812.0,0.36674255]
[1725377409220,0.0004,57814.0,57812.0,0.36674255]
[1725377409527,0.0004,57814.0,57812.0,0.41285123]
[1725377409830,0.0004,57814.0,57813.0,0.08634323]
[1725377410519,0.0004,57814.0,57812.0,0.086508]
[1725377410722,0.008,57813.0,57812.0,0.086508]
[1725377410920,0.0088,57813.0,57812.0,0.086508]
[1725377411126,0.2488,57813.0,57812.0,0.086508]
[1725377411328,0.2488,57813.0,57811.0,0.06901536]
[1725377411329,0.2408,57813.0,57811.0,0.06901536]
[1725377411521,0.2408,57813.0,57807.0,0.00025943]
[1725377411522,0.08651,57811.0,57809.0,0.06901536]
[1725377411721,0.08651,57811.0,57807.0,0.00025943]
[1725377411722,0.2408,57810.0,57808.0,0.06901536]
[1725377412019,0.0008,57812.0,57809.0,0.3608]
[1725377412218,0.0008,57812.0,57811.0,0.06899652]
[1725377413028,0.0008,57812.0,57810.0,0.06899652]
[1725377413224,0.2408,57811.0,57808.0,0.06999652]
[1725377413417,0.0008,57809.0,57808.0,0.06899652]
[1725377413622,0.0008,57811.0,57807.0,0.00025943]
[1725377413830,0.0008,57811.0,57810.0,0.42978841]
[1725377414530,0.0008,57811.0,57810.0,0.3608]
[1725377415526,0.0008,57811.0,57810.0,0.447311]
[1725377415726,0.2408,57811.0,57810.0,0.3608]
[1725377415926,0.2408,57811.0,57810.0,0.3628]
[1725377417337,0.2428,57811.0,57810.0,0.3628]
[1725377417635,0.2428,57811.0,57810.0,0.41449677]
[1725377418233,0.0028,57811.0,57810.0,0.449311]
[1725377418428,0.00025943,57819.0,57818.0,0.086499]
[1725377418626,0.2354,57828.0,57818.0,1.11968]
[1725377418830,0.004,57835.0,57818.0,1.11968]
[1725377418831,0.24,57835.0,57827.0,0.6008]
[1725377419034,0.6871,57838.0,57833.0,0.24]
[1725377419225,0.086471,57837.0,57833.0,0.24]
[1725377419430,0.326471,57837.0,57833.0,0.24]
[1725377419828,0.326471,57837.0,57833.0,0.0086096]
[1725377420030,0.326471,57837.0,57830.0,0.08648]
[1725377420629,0.24,57837.0,57833.0,0.3608]
[1725377420834,0.24,57837.0,57833.0,0.36941738]
[1725377421032,0.086473,57836.0,57833.0,0.36941738]
[1725377421236,0.326475,57834.0,57833.0,0.00861738]
[1725377421427,0.24,57834.0,57829.0,0.0315624]
[1725377421638,0.0008,57830.0,57829.0,0.0315624]
[1725377422237,0.322181,57830.0,57829.0,0.0315624]
[1725377422835,0.408662,57830.0,57829.0,0.0315624]
[1725377423240,0.322181,57830.0,57829.0,0.0315624]
[1725377423539,1.527422,57830.0,57829.0,0.0315624]
[1725377424541,1.613903,57830.0,57829.0,0.00025943]
[1725377424841,0.172996,57819.0,57818.0,0.004]
[1725377425035,0.172996,57819.0,57811.0,0.14017851]
[1725377425036,0.086508,57812.0,57811.0,0.002]
[1725377425232,0.2408,57812.0,57811.0,0.08851]
[1725377425435,0.326305,57815.0,57811.0,0.08851]
[1725377425737,0.2198,57818.0,57816.0,0.086501]
[1725377425933,0.0008,57819.0,57818.0,0.086499]
[1725377426526,0.3608,57826.0,57822.0,0.086493]
[1725377426734,0.3608,57826.0,57823.0,0.24]
[1725377426943,0.008,57830.0,57825.0,0.3608]
[1725377427241,0.24,57831.0,57825.0,0.3608]
[1725377427836,0.24,57831.0,57825.0,0.447289]
[1725377428940,0.001,57826.0,57825.0,0.447289]
[1725377429533,0.004,57830.0,57825.0,0.447289]
[1725377429839,0.004,57830.0,57826.0,0.086487]
[1725377430538,0.24,57831.0,57826.0,0.086487]
[1725377431332,0.001,57830.0,57826.0,0.086487]
[1725377431527,0.001,57830.0,57825.0,0.39411783]
[1725377431743,0.0008,57826.0,57825.0,0.48060683]
[1725377432040,0.086476,57834.0,57825.0,0.39411783]
[1725377432041,0.24,57834.0,57825.0,0.39411783]
[1725377432233,0.24,57834.0,57830.0,0.3608]
[1725377432832,0.24,57831.0,57830.0,0.3608]
[1725377434542,0.004,57831.0,57830.0,0.3608]
[1725377434738,0.05141856,57842.0,57838.0,0.086469]
[1725377435052,0.2342,57843.0,57840.0,0.24]
[1725377435357,0.3608,57846.0,57843.0,0.086461]
[1725377435549,0.3608,57846.0,57844.0,0.08646]
[1725377435853,0.3608,57846.0,57843.0,0.24]
[1725377436844,0.24,57844.0,57838.0,0.24857895]
[1725377437040,0.24,57844.0,57838.0,0.24]
[1725377437244,0.326461,57844.0,57838.0,0.24]
[1725377437440,0.24,57841.0,57838.0,0.00852419]
[1725377437640,0.24,57841.0,57837.0,0.39116948]
[1725377438036,0.24,57841.0,57837.0,0.39975595]
[1725377438348,0.08646,57845.0,57840.0,0.086466]
[1725377438349,0.24,57845.0,57840.0,0.086466]
[1725377438651,0.3608,57846.0,57841.0,0.24]
[1725377439042,0.24,57845.0,57840.0,0.086466]
[1725377439741,0.243,57845.0,57841.0,0.086465]
[1725377440250,0.241,57845.0,57841.0,0.086465]
[1725377440449,0.244,57845.0,57841.0,0.086465]
[1725377441145,0.243,57845.0,57841.0,0.086465]
[1725377441337,0.243,57845.0,57842.0,0.086463]
[1725377441536,0.003,57845.0,57844.0,0.32646]
[1725377441743,0.27361856,57852.0,57850.0,0.08645]
[1725377442042,0.2222,57852.0,57851.0,0.24]
[1725377442239,0.2217,57855.0,57851.0,0.24]
[1725377442450,0.2217,57855.0,57854.0,0.24]
[1725377442659,0.2251,57861.0,57854.0,0.24]
[1725377442949,0.2251,57861.0,57860.0,0.326437]
[1725377443250,0.05141856,57867.0,57860.0,0.24]
[1725377443447,0.05141856,57866.0,57860.0,0.24]
[1725377443746,0.086426,57867.0,57860.0,0.24]
[1725377443946,0.08643,57865.0,57860.0,0.24]
[1725377444149,0.012,57861.0,57860.0,0.24]
[1725377444453,0.012,57861.0,57860.0,0.241]
[1725377444835,0.012,57861.0,57860.0,0.001]
[1725377445743,0.338435,57861.0,57860.0,0.001]
[1725377445943,0.41287,57861.0,57860.0,0.002]
[1725377446143,0.4644003,57861.0,57860.0,0.03283178]
[1725377446354,0.4774003,57861.0,57860.0,0.002]
[1725377446648,0.339435,57861.0,57860.0,0.002]
[1725377446841,0.339435,57861.0,57860.0,0.001]
[1725377447046,0.353435,57861.0,57860.0,0.002]
[1725377447545,0.871915,57861.0,57860.0,0.03379011]
[1725377447745,1.77855,57861.0,57860.0,0.002]
[1725377448359,1.692115,57861.0,57860.0,0.002]
[1725377448656,1.77855,57861.0,57860.0,0.002]
[1725377448853,1.83010949,57861.0,57860.0,0.002]
[1725377449658,1.77855,57861.0,57860.0,0.002]
[1725377450452,0.08644,57858.0,57847.0,0.004]
[1725377450753,0.086461,57844.0,57839.0,0.41246951]
[1725377450946,0.086462,57843.0,57842.0,0.086462]
[1725377451552,0.086462,57843.0,57839.0,0.39212321]
[1725377451758,0.0004,57840.0,57839.0,0.47859121]
[1725377452750,0.0004,57840.0,57839.0,0.39212321]
[1725377453047,0.0004,57840.0,57839.0,0.39712321]
[1725377453455,0.0014,57840.0,57839.0,0.39712321]
[1725377453647,0.086466,57840.0,57839.0,0.39712321]
[1725377453856,0.086466,57840.0,57839.0,0.03632321]
[1725377454364,0.086466,57840.0,57839.0,0.04132321]
[1725377454858,0.326466,57840.0,57839.0,0.04132321]
[1725377455356,0.326466,57840.0,57839.0,0.03932321]
[1725377455745,0.412932,57840.0,57839.0,0.03932321]
[1725377455957,0.412932,57840.0,57839.0,0.03732321]
[1725377456151,0.412932,57840.0,57839.0,0.03232321]
[1725377456152,0.773732,57840.0,57839.0,0.03232321]
[1725377456347,0.259407,57838.0,57837.0,0.00025943]
[1725377456555,0.259407,57838.0,57837.0,0.03153573]
[1725377456861,0.259407,57838.0,57823.0,0.004]
[1725377456862,0.086489,57825.0,57824.0,0.05166951]
[1725377457047,0.08649,57824.0,57823.0,0.05166951]
[1725377457244,0.08649,57824.0,57823.0,0.08198159]
[1725377457449,0.08649,57824.0,57823.0,0.05162061]
[1725377457847,0.08549,57824.0,57823.0,0.05162061]
[1725377458251,0.08449,57824.0,57823.0,0.05162061]
[1725377458453,0.08489,57824.0,57823.0,0.05162061]
[1725377458853,0.08489,57824.0,57823.0,0.05462061]
[1725377459653,0.0004,57824.0,57823.0,0.003]
[1725377460446,0.0004,57824.0,57823.0,0.243]
[1725377460653,0.0004,57824.0,57823.0,0.329492]
[1725377461048,0.0004,57824.0,57823.0,0.331492]
[1725377461763,0.0004,57824.0,57823.0,0.005]
[1725377461967,0.08689,57824.0,57823.0,0.05661696]
[1725377462260,0.08689,57824.0,57823.0,0.005]
[1725377462652,0.08689,57824.0,57823.0,0.05661696]
[1725377463056,0.17338,57824.0,57823.0,0.005]
[1725377463261,1.79591,57824.0,57823.0,0.005]
[1725377464568,0.59058,57824.0,57823.0,0.005]
[1725377465155,0.50409,57824.0,57823.0,0.005]
[1725377465555,0.08689,57824.0,57823.0,0.005]
[1725377465959,1.29222,57824.0,57823.0,0.005]
[1725377466162,1.37871,57824.0,57823.0,0.005]
[1725377466361,1.37871,57824.0,57818.0,0.00025943]
[1725377466362,0.172996,57819.0,57818.0,0.00025943]
[1725377466666,0.774196,57819.0,57818.0,0.00025943]
[1725377466871,1.893076,57819.0,57818.0,0.00025943]
[1725377467270,1.893076,57819.0,57816.0,0.0048]
[1725377467271,0.173002,57817.0,57816.0,0.0048]
[1725377467466,0.173002,57817.0,57802.0,0.05161197]
[1725377467467,0.24,57808.0,57803.0,0.004]
[1725377467665,0.24,57815.0,57801.0,0.004]
[1725377467666,0.232,57804.0,57801.0,0.086524]
[1725377467965,0.232,57804.0,57802.0,0.00856132]
[1725377467966,0.086523,57803.0,57802.0,0.00856132]
[1725377468160,0.086523,57803.0,57798.0,0.2078]
[1725377468161,0.326523,57803.0,57798.0,0.086529]
[1725377468361,0.24,57799.0,57798.0,0.086529]
[1725377468667,0.24,57799.0,57795.0,0.00025943]
[1725377468863,0.086524,57802.0,57795.0,0.00025943]
[1725377469069,0.24,57800.0,57795.0,0.00025943]
[1725377469466,0.24,57800.0,57798.0,0.006]
[1725377469957,0.086529,57798.0,57795.0,0.00025943]
[1725377470161,0.24,57796.0,57795.0,0.00425943]
[1725377470362,0.326532,57796.0,57795.0,0.00425943]
[1725377470563,0.24,57796.0,57795.0,0.00425943]
[1725377470765,0.326532,57796.0,57795.0,0.00425943]
[1725377471669,0.325532,57796.0,57795.0,0.00025943]
[1725377472261,0.331532,57796.0,57795.0,0.00025943]
[1725377472463,0.418064,57796.0,57795.0,0.00025943]
[1725377472673,0.778864,57796.0,57795.0,0.00025943]
[1725377472972,0.1731,57784.0,57783.0,0.004]
[1725377473171,0.1731,57784.0,57783.0,0.03049689]
[1725377473172,1.28735,57784.0,57783.0,0.03049689]
[1725377473370,0.086565,57774.0,57771.0,0.004]
[1725377473671,0.24,57772.0,57771.0,0.00863237]
[1725377473860,0.24,57772.0,57770.0,0.3608]
[1725377474062,0.3,57772.0,57770.0,0.3608]
[1725377474579,0.08737,57771.0,57770.0,0.3608]
[1725377475062,0.08737,57771.0,57770.0,0.39167086]
[1725377475371,0.60665,57771.0,57770.0,0.03087086]
[1725377475573,0.086577,57766.0,57765.0,0.00025943]
[1725377475769,0.3008,57766.0,57765.0,0.03085604]
[1725377476268,0.0008,57766.0,57765.0,0.03085604]
[1725377476769,0.2988,57770.0,57767.0,0.086575]
[1725377476969,0.2988,57770.0,57765.0,0.03165604]
[1725377477274,0.3,57766.0,57765.0,0.03165604]
[1725377477569,0.301,57766.0,57765.0,0.03365604]
[1725377478772,0.302,57766.0,57765.0,0.03365604]
[1725377479159,0.301,57766.0,57765.0,0.03165604]
[1725377479368,0.387577,57766.0,57765.0,0.03165604]
[1725377479770,0.387577,57766.0,57765.0,0.00105943]
[1725377479972,0.474154,57766.0,57765.0,0.00105943]
[1725377480178,0.475154,57766.0,57765.0,0.00105943]
[1725377480365,0.994514,57766.0,57765.0,0.00105943]
[1725377480565,1.594514,57766.0,57765.0,0.00105943]
[1725377481881,1.595514,57766.0,57765.0,0.00105943]
[1725377482375,1.597514,57766.0,57765.0,0.00105943]
[1725377484398,0.478154,57766.0,57765.0,0.00105943]
[1725377484569,0.478154,57766.0,57756.0,0.004]
[1725377484570,0.086591,57757.0,57756.0,0.004]
[1725377484767,0.3,57759.0,57751.0,0.086599]
[1725377484971,0.086597,57753.0,57752.0,0.0084944]
[1725377485779,0.086602,57750.0,57747.0,0.36105966]
[1725377485978,0.00025966,57758.0,57747.0,0.3920636]
[1725377485979,0.386604,57748.0,57747.0,0.3920636]
[1725377486670,0.386604,57748.0,57747.0,0.0312636]
[1725377486869,0.386604,57748.0,57747.0,0.03991045]
[1725377487070,0.386604,57748.0,57747.0,0.00025966]
[1725377488473,0.387604,57748.0,57747.0,0.00025966]
[1725377488971,0.390604,57748.0,57747.0,0.00025966]
[1725377489571,0.751404,57748.0,57747.0,0.00025966]
[1725377489778,0.086624,57735.0,57733.0,0.58385616]
[1725377489968,0.086624,57735.0,57733.0,0.00252]
[1725377489969,0.086625,57734.0,57733.0,0.00252]
[1725377490174,0.3,57735.0,57725.0,0.3608]
[1725377490379,0.3,57730.0,57725.0,0.3608]
[1725377491073,0.3,57730.0,57725.0,0.447438]
[1725377491272,0.3,57726.0,57725.0,0.3608]
[1725377492172,0.3008,57726.0,57725.0,0.447439]
[1725377492372,0.00025966,57733.0,57725.0,0.447439]
[1725377492373,0.00025966,57733.0,57725.0,1.48052]
[1725377492576,0.001,57730.0,57728.0,0.284]
[1725377492878,0.001,57730.0,57729.0,0.086633]
[1725377493179,0.00025966,57733.0,57729.0,0.086633]
[1725377493379,0.00025966,57733.0,57732.0,0.3608]
[1725377494077,0.00025966,57733.0,57732.0,0.447428]
[1725377496182,0.00125966,57733.0,57732.0,0.447428]
[1725377496494,0.3,57745.0,57732.0,1.567068]
[1725377496679,0.3,57745.0,57741.0,0.3608]
[1725377497276,0.386609,57745.0,57738.0,0.3608]
[1725377497486,0.3,57742.0,57739.0,0.2255]
[1725377497982,0.3,57742.0,57739.0,0.312118]
[1725377498373,0.3,57742.0,57739.0,0.2255]
[1725377498581,0.3,57742.0,57738.0,0.3608]
[1725377498883,0.3,57739.0,57738.0,0.3608]
[1725377499389,0.299,57739.0,57738.0,0.3608]
[1725377499976,0.24,57739.0,57738.0,0.39150706]
[1725377500178,0.242,57739.0,57738.0,0.39150706]
[1725377500678,0.328618,57739.0,57738.0,0.39150706]
[1725377500879,0.242,57739.0,57738.0,0.39150706]